bitfinex-derivatives/quotes_SOLF0:USTF0_20251108
["timestamp","ask_amount","ask_price","bid_price","bid_amount"]
[1762643613756,3.22,158.05,158.04,3.03]
[1762643613957,8.09332357,158.05,158.04,3.03]
[1762643614654,8.09332357,158.05,158.03,5.73784477]
[1762643614849,3.22,158.05,158.03,8.76784477]
[1762643616562,5.02502549,158.04,158.03,0.04104477]
[1762643616858,5.02502549,158.04,157.95,1.80502549]
[1762643616859,3.22,158.03,157.98,3.03]
[1762643617054,3.22,158.01,157.98,3.03]
[1762643617851,3.26283997,158.01,157.98,3.07509281]
[1762643618052,3.26283997,158.01,157.99,3.03]
[1762643621563,0.04283997,158.01,157.99,8.7282]
[1762643621760,0.04283997,158.01,158.0,3.03]
[1762643641878,0.04283997,158.01,158.0,4.83502549]
[1762643643274,3.2,158.06,158.01,5.6973]
[1762643643481,4.87661166,158.05,158.02,2.95]
[1762643643680,4.87661166,158.04,158.02,2.95]
[1762643643880,3.2,158.06,158.02,2.95]
[1762643644181,4.87661166,158.05,158.02,2.95]
[1762643644474,4.87661166,158.04,158.02,2.99436856]
[1762643644668,0.04308172,158.05,158.02,2.99436856]
[1762643644872,4.87658271,158.04,158.02,2.99436856]
[1762643645071,0.04308172,158.05,158.02,2.99436856]
[1762643645273,4.87658271,158.04,158.02,2.99436856]
[1762643645481,0.04308172,158.05,158.02,2.99436856]
[1762643645780,4.87654357,158.04,158.02,2.99436856]
[1762643646081,0.04308172,158.05,158.02,2.99436856]
[1762643646275,4.87654357,158.04,158.02,2.99436856]
[1762643646476,0.04308172,158.05,158.02,8.69156856]
[1762643646676,4.87654084,158.04,158.03,2.95]
[1762643650383,0.04308172,158.05,158.03,2.95]
[1762643650775,0.04308172,158.05,158.03,8.6469]
[1762643650971,0.04308172,158.05,158.04,2.95]
[1762643662980,0.04308172,158.05,158.04,8.6465]
[1762643671189,3.24308172,158.05,158.04,8.6465]
[1762643671398,3.24308172,158.05,158.04,5.6965]
[1762643671596,3.24308172,158.05,158.04,8.6665]
[1762643671803,3.24308172,158.05,158.04,5.6965]
[1762643672004,3.24308172,158.05,158.02,5.74136856]
[1762643672206,3.03,158.03,158.02,0.04436856]
[1762643672502,3.03,158.03,158.02,3.01436856]
[1762643675500,5.84811449,158.04,158.02,3.01436856]
[1762643678107,3.03,158.03,158.02,0.04436856]
[1762643683702,7.92257403,158.03,158.02,0.04436856]
[1762643683902,3.03,158.03,158.02,0.04436856]
[1762643684395,7.92248792,158.03,158.02,0.04436856]
[1762643685409,12.49906192,158.03,158.02,0.04436856]
[1762643685609,12.49906192,158.03,157.97,3.12]
[1762643685610,3.14,158.02,157.97,3.12]
[1762643685807,3.14,158.0,157.97,3.12]
[1762643686506,3.18652742,158.0,157.97,3.16699775]
[1762643687014,3.18652742,158.0,157.98,8.8187]
[1762643688013,3.18652742,158.0,157.99,3.12]
[1762643688608,0.04652742,158.0,157.99,3.12]
[1762643700320,3.18652742,158.0,157.98,5.6987]
[1762643700508,0.04652742,158.0,157.99,3.12]
[1762643703815,2.92,158.06,158.02,3.22]
[1762643704125,4.92074875,158.05,158.02,3.22]
[1762643704419,2.92,158.07,158.03,3.22]
[1762643704619,7.84083803,158.06,158.03,3.22]
[1762643704824,4.92083803,158.05,158.03,3.26265091]
[1762643705120,2.96199843,158.06,158.03,3.26265091]
[1762643705324,4.92083707,158.05,158.03,3.26265091]
[1762643705522,2.96199843,158.06,158.03,3.26265091]
[1762643705823,7.83359206,158.05,158.03,3.26265091]
[1762643706028,2.92,158.05,158.03,3.26265091]
[1762643707625,4.9142343,158.04,158.03,3.26265091]
[1762643707826,2.92,158.05,158.03,3.26265091]
[1762643708324,7.8340272,158.04,158.03,0.04265091]
[1762643714332,9.63838938,158.04,158.03,0.04265091]
[1762643717235,7.8340272,158.04,158.03,0.04265091]
[1762643717436,9.63838938,158.04,158.03,0.04265091]
[1762643733046,7.8340272,158.04,158.03,0.04265091]
[1762643738143,2.92,158.04,158.03,0.04265091]
[1762643738349,7.8433063,158.04,158.03,0.04265091]
[1762643741953,4.9233063,158.04,158.03,8.85955091]
[1762643742251,8.0433063,158.04,158.03,5.73955091]
[1762643746056,8.04263366,158.04,158.03,5.73955091]
[1762643746757,8.04263366,158.04,158.03,0.04265091]
[1762643753560,9.84699584,158.04,158.03,0.04265091]
[1762643753955,14.38018067,158.04,158.03,0.04265091]
[1762643754963,14.38011562,158.04,158.03,0.04265091]
[1762643756363,9.84699584,158.04,158.03,0.04265091]
[1762643758464,14.37954703,158.04,158.03,0.04265091]
[1762643763761,12.57518485,158.04,158.03,0.04265091]
[1762643763962,7.86263366,158.04,158.03,0.04265091]
[1762643765268,2.94,158.03,157.97,3.0]
[1762643765565,2.94,158.01,157.97,3.0]
[1762643766064,2.9816088,158.01,157.97,8.74478461]
[1762643766365,2.9816088,158.01,157.98,3.0]
[1762643767763,2.9816088,158.01,157.97,3.04598461]
[1762643768968,2.9816088,158.01,157.98,5.6986]
[1762643769867,2.9816088,158.01,157.97,3.04598461]
[1762643769868,2.94,157.99,157.97,3.04598461]
[1762643770366,7.84102617,157.98,157.97,0.04598461]
[1762643770572,2.94,157.97,157.89,3.0]
[1762643770771,2.94,157.95,157.89,3.0]
[1762643771468,2.94,157.95,157.91,3.0]
[1762643771671,0.04013237,157.94,157.91,3.0]
[1762643771873,2.98013237,157.94,157.91,3.0]
[1762643772577,2.98013237,157.94,157.92,5.7006]
[1762643772777,2.98013237,157.94,157.91,3.0]
[1762643773778,2.98013237,157.94,157.91,8.701]
[1762643775873,2.98013237,157.94,157.9,0.04347555]
[1762643776181,2.98013237,157.94,157.9,3.04347555]
[1762643777075,2.98013237,157.94,157.9,0.04347555]
[1762643777474,2.98013237,157.94,157.9,8.74497555]
[1762643779478,2.98013237,157.94,157.9,5.74497555]
[1762643782582,2.98013237,157.94,157.9,0.04347555]
[1762643782583,2.94,157.93,157.9,0.04347555]
[1762643783992,2.94,157.92,157.9,0.04347555]
[1762643786883,2.94,157.91,157.9,0.04347555]
[1762643790597,2.94,157.93,157.9,3.04347555]
[1762643791997,2.94,157.93,157.9,8.74497555]
[1762643792800,2.94,157.93,157.91,3.03]
[1762643794696,0.04013237,157.94,157.92,3.03]
[1762643795000,3.08013237,157.94,157.92,3.03]
[1762643795300,3.08013237,157.94,157.91,3.03]
[1762643795900,3.08013237,157.94,157.91,8.7312]
[1762643798002,3.08013237,157.94,157.92,5.7008]
[1762643801901,3.08013237,157.94,157.91,3.03]
[1762643803113,3.08013237,157.94,157.91,8.7312]
[1762643816727,3.08013237,157.94,157.92,3.15]
[1762643817016,0.04013237,157.94,157.93,3.15]
[1762643819012,0.04013237,157.94,157.93,8.8505]
[1762643820819,8.6382,158.0,157.97,3.15]
[1762643821120,4.88416188,157.99,157.97,3.15]
[1762643821325,4.88416188,157.98,157.97,3.15]
[1762643822617,0.0465733,157.99,157.97,3.15]
[1762643823523,0.0465733,157.99,157.98,3.12]
[1762643825321,3.18,158.02,157.99,3.12]
[1762643826024,3.18,158.02,158.0,3.12]
[1762643827725,6.05090466,158.03,158.0,3.12]
[1762643828231,2.87090466,158.03,158.01,3.12]
[1762643830223,2.87090466,158.03,158.02,3.12]
[1762643832026,0.04815367,158.03,158.02,3.12]
[1762643846549,1.8039017,158.06,158.05,3.12]
[1762643847442,1.8039017,158.06,158.05,8.8158]
[1762643860733,3.16,158.05,158.04,0.04267585]
[1762643863746,3.16,158.04,158.0,2.93]
[1762643863943,4.9639017,158.02,158.0,2.93]
[1762643864846,3.24,158.01,157.99,3.19682732]
[1762643865641,1.8039017,158.0,157.99,5.74492732]
[1762643865841,5.0439017,158.0,157.99,0.04682732]
[1762643869149,3.24,157.99,157.94,3.15]
[1762643869941,3.24,157.99,157.95,5.6996]
[1762643870246,3.28207093,157.99,157.95,8.89464277]
[1762643871251,3.24,157.97,157.95,8.89464277]
[1762643871455,3.24,157.97,157.95,3.19504277]
[1762643873054,3.24,157.97,157.95,8.89474277]
[1762643877760,1.8039017,157.98,157.97,3.15]
[1762643878255,5.0439017,157.98,157.96,5.6992]
[1762643878456,5.0439017,157.98,157.96,8.8492]
[1762643878956,0.04207093,157.99,157.97,8.849]
[1762643879157,3.28207093,157.99,157.97,8.849]
[1762643881361,1.8039017,157.98,157.97,5.699]
[1762643881561,5.0439017,157.98,157.97,5.699]
[1762643881766,5.0439017,157.98,157.95,8.78464277]
[1762643881767,3.24,157.97,157.95,8.78464277]
[1762643882460,3.24,157.97,157.95,0.04504277]
[1762643888662,3.24,157.97,157.95,5.74474277]
[1762643889863,3.24,157.97,157.96,3.04]
[1762643890164,3.24,157.97,157.95,5.74474277]
[1762643890371,3.24,157.97,157.95,8.78474277]
[1762643897171,5.0439017,157.98,157.96,3.04]
[1762643897374,0.04207093,157.99,157.97,3.04]
[1762643897673,3.28207093,157.99,157.97,3.04]
[1762643898074,3.28207093,157.99,157.97,8.739]
[1762643903475,3.28207093,157.99,157.97,5.699]
[1762643904179,3.28207093,157.99,157.95,8.78444277]
[1762643904478,3.28207093,157.99,157.96,3.04]
[1762643905974,3.28207093,157.99,157.96,8.7394]
[1762643908283,8.09916483,157.98,157.96,8.7394]
[1762643908483,3.24,157.98,157.96,8.7394]
[1762643911285,3.24,157.98,157.97,3.04]
[1762643911473,8.10384118,157.98,157.97,3.04]
[1762643913185,4.86384118,157.98,157.97,3.04]
[1762643914583,0.04207093,157.99,157.98,8.7687]
[1762643914784,4.90826265,157.99,157.98,8.7687]
[1762643916582,7.98826265,157.99,157.98,8.7687]
[1762643917487,4.90826265,157.99,157.98,8.7687]
[1762643917687,0.04207093,157.99,157.98,8.7687]
[1762643917889,4.90682048,157.99,157.98,8.7687]
[1762643918292,0.04207093,157.99,157.98,8.7687]
[1762643920893,4.90561135,157.99,157.98,8.7687]
[1762643921087,0.04207093,157.99,157.98,8.7687]
[1762643924301,4.90464379,157.99,157.98,8.7687]
[1762643927100,0.04207093,157.99,157.98,8.7687]
[1762643930901,3.25207093,157.99,157.98,8.7687]
[1762643931101,8.1068717,157.99,157.98,8.7687]
[1762643931297,0.04207093,157.99,157.98,8.7687]
[1762643931497,0.04207093,157.99,157.98,3.07]
[1762643931797,3.21,157.98,157.96,3.01]
[1762643932100,3.21,157.98,157.95,3.05504277]
[1762643933098,3.21,157.98,157.95,5.74454277]
[1762643933300,3.21,157.98,157.95,8.75454277]
[1762643934900,0.04207093,157.99,157.97,3.01]
[1762643935601,0.04207093,157.99,157.97,8.709]
[1762643935801,0.04207093,157.99,157.98,3.01]
[1762643938602,9.13538943,158.05,158.01,3.01]
[1762643938603,4.60246552,158.04,158.01,3.01]
[1762643938804,4.85276253,158.03,158.01,3.01]
[1762643939003,3.21,158.05,158.01,3.01]
[1762643939307,4.85275995,158.04,158.01,3.01]
[1762643939511,4.85275995,158.03,158.01,3.05689302]
[1762643939711,3.24985083,158.04,158.01,3.05689302]
[1762643940212,3.24985083,158.04,158.02,8.707]
[1762643943217,0.03985083,158.04,158.03,3.13]
[1762643943413,4.875234,158.04,158.03,3.13]
[1762643944805,7.825234,158.04,158.03,3.13]
[1762643945112,7.825234,158.04,158.02,8.827]
[1762643945312,2.98985083,158.04,158.02,8.827]
[1762643945819,2.98985083,158.04,158.01,0.04689302]
[1762643946012,7.78432547,158.03,158.01,0.04689302]
[1762643946307,2.95,158.03,158.01,0.04689302]
[1762643951012,2.95,158.03,158.01,8.87449302]
[1762643951212,0.03985083,158.04,158.02,3.13]
[1762643951720,2.98985083,158.04,158.02,3.13]
[1762643952015,2.98985083,158.04,158.01,8.87449302]
[1762643954118,7.78348243,158.03,158.01,8.87449302]
[1762643954419,2.95,158.02,158.01,8.87449302]
[1762643955624,2.98985083,158.04,158.01,8.87449302]
[1762643956917,2.98985083,158.04,158.02,3.13]
[1762643958416,2.95,158.03,158.02,3.13]
[1762643959624,7.78280236,158.03,158.01,5.74449302]
[1762643959825,2.95,158.03,158.01,8.87449302]
[1762643960026,2.95,158.03,158.01,0.04689302]
[1762643960223,2.95,158.03,158.01,3.17689302]
[1762643962128,2.95,158.03,158.01,8.87449302]
[1762643966631,2.98985083,158.04,158.02,3.13]
[1762643966829,4.83356183,158.03,158.02,3.13]
[1762643967629,7.78356183,158.03,158.02,3.13]
[1762643968323,7.78356183,158.03,158.01,5.74449302]
[1762643968520,2.95,158.03,158.01,8.87449302]
[1762643971328,1.84441294,158.04,158.02,3.13]
[1762643971830,4.80441294,158.04,158.02,3.13]
[1762643972419,1.84441294,158.04,158.02,3.13]
[1762643972819,4.80441294,158.04,158.02,3.13]
[1762643974332,1.84441294,158.04,158.02,3.13]
[1762643975036,4.80441294,158.04,158.02,3.13]
[1762643977426,4.83696699,158.03,158.02,3.13]
[1762643980832,7.79696699,158.03,158.01,3.07689302]
[1762643981033,2.96,158.03,158.01,3.07689302]
[1762643981431,9.60761961,158.02,158.01,0.04689302]
[1762643982435,14.19748226,158.02,158.01,0.04689302]
[1762643984141,3.09,158.01,157.98,3.03]
[1762643984336,9.73761961,158.0,157.98,3.03]
[1762643984536,4.89456211,158.0,157.98,3.03]
[1762643985136,3.09,157.99,157.98,3.03]
[1762643985647,4.89456211,158.0,157.98,3.03]
[1762643987050,3.09,157.99,157.97,0.04836526]
[1762643989738,4.89456211,157.98,157.97,0.04836526]
[1762643994050,9.72095667,157.98,157.97,0.04836526]
[1762643995749,9.72095667,157.98,157.94,5.6998]
[1762643995942,4.89456211,157.96,157.93,8.7003]
[1762643996444,3.09,157.95,157.93,8.7003]
[1762643998449,3.09,157.95,157.94,3.0]
[1762643999353,3.09,157.95,157.93,5.7003]
[1762643999554,3.09,157.95,157.93,8.7003]
[1762644000850,3.09,157.95,157.94,3.0]
[1762644008756,5.90591092,158.02,157.94,3.0]
[1762644008757,22.0,158.09,157.94,4.26]
[1762644008962,2.98,158.16,158.04,1.80456211]
[1762644009153,2.98,158.16,157.98,107.6367]
[1762644009154,2.98,158.15,158.05,62.96]
[1762644009353,2.98,158.15,158.09,7.49916211]
[1762644009555,2.98,158.15,158.05,64.84456211]
[1762644009556,2.98,158.2,158.14,1.80456211]
[1762644009765,2.98,158.21,158.16,1.80456211]
[1762644009961,2.98,158.21,158.1,70.87563366]
[1762644010256,0.04255709,158.17,158.14,1.853059]
[1762644010559,0.04000957,158.17,158.14,0.04026035]
[1762644011456,3.02000957,158.17,158.14,0.04026035]
[1762644012754,2.98,158.16,158.14,0.04026035]
[1762644013856,2.98,158.15,158.14,0.04026035]
[1762644015963,3.02000957,158.17,158.14,0.04026035]
[1762644027963,2.98,158.16,158.14,0.04026035]
[1762644029063,2.98,158.15,158.14,0.04026035]
[1762644048382,2.97,158.16,158.14,0.04026035]
[1762644050088,2.97,158.16,158.15,5.6926]
[1762644050880,2.97,158.16,158.14,0.04026035]
[1762644052081,2.97,158.16,158.14,5.73316035]
[1762644053386,7.69876319,158.15,158.14,5.73316035]
[1762644054179,2.97,158.15,158.14,5.73316035]
[1762644054579,2.97,158.16,158.14,5.73316035]
[1762644054788,3.01000957,158.17,158.15,5.6924]
[1762644058986,4.57027088,158.16,158.14,0.04026035]
[1762644059187,2.97,158.15,158.14,0.04026035]
[1762644080808,8.6626,158.15,158.14,0.04026035]
[1762644085510,3.09,158.13,158.08,7.81563366]
[1762644086507,3.09,158.11,158.09,5.74324615]
[1762644088815,3.09,158.11,158.09,0.04854615]
[1762644096431,3.09,158.11,158.09,5.74324615]
[1762644104136,3.09699991,158.12,158.1,5.6943]
[1762644111644,3.09699991,158.12,158.11,5.694]
[1762644116549,0.04699991,158.12,158.11,5.694]
[1762644117049,3.09699991,158.12,158.11,5.694]
[1762644134161,0.04699991,158.12,158.11,5.694]
[1762644137378,3.04699991,158.12,158.11,5.694]
[1762644137678,0.04699991,158.12,158.11,5.694]
[1762644145491,3.0,158.16,158.11,7.81563366]
[1762644146389,0.04105687,158.15,158.11,7.81563366]
[1762644147085,0.04105687,158.15,158.13,5.693]
[1762644156388,3.23105687,158.15,158.13,5.693]
[1762644159200,0.04105687,158.15,158.13,5.693]
[1762644167202,3.18105687,158.15,158.13,5.693]
[1762644173706,0.04105687,158.15,158.13,5.693]
[1762644174802,0.04105687,158.15,158.14,5.6929]
[1762644185713,3.14105687,158.15,158.12,13.55024852]
[1762644186018,3.14105687,158.15,158.12,0.04111486]
[1762644186404,3.14105687,158.15,158.13,5.6932]
[1762644186605,0.04105687,158.15,158.13,13.50883366]
[1762644186810,0.04105687,158.15,158.14,7.81563366]
[1762644189913,0.04105687,158.15,158.13,17.4166505]
[1762644190112,3.1,158.22,158.14,11.7234505]
[1762644190319,3.1,158.22,158.17,7.83276937]
[1762644191218,0.04861075,158.21,158.19,5.6909]
[1762644191721,3.14861075,158.21,158.19,5.6909]
[1762644193614,0.04861075,158.21,158.19,5.6909]
[1762644194820,3.14861075,158.21,158.19,5.6909]
[1762644195015,3.14861075,158.21,158.18,0.04170798]
[1762644196219,3.14861075,158.21,158.18,5.73300798]
[1762644200514,3.14861075,158.21,158.18,0.04170798]
[1762644201020,3.1,158.19,158.18,0.04170798]
[1762644203124,3.1,158.19,158.13,62.48]
[1762644203125,3.1,158.18,158.13,62.48]
[1762644204229,3.1,158.16,158.14,0.04735267]
[1762644204827,3.1,158.16,158.14,5.74025267]
[1762644208140,0.04172844,158.17,158.15,5.6925]
[1762644217740,3.10172844,158.17,158.15,5.6925]
[1762644221550,0.04172844,158.17,158.15,5.6925]
[1762644222751,3.10172844,158.17,158.15,5.6925]
[1762644235760,4.9033485,158.17,158.15,5.6925]
[1762644236064,2.93,158.16,158.15,5.6925]
[1762644240879,0.04172844,158.17,158.15,5.6925]
[1762644242171,3.20172844,158.17,158.15,5.6925]
[1762644251379,3.20172844,158.17,158.14,0.04735267]
[1762644251978,3.20172844,158.17,158.15,5.6925]
[1762644252279,3.20172844,158.17,158.14,0.04735267]
[1762644254874,3.20172844,158.17,158.14,5.74025267]
[1762644258182,3.20172844,158.17,158.15,5.6925]
[1762644269284,0.04172844,158.17,158.15,5.6925]
[1762644270885,0.04172844,158.17,158.16,5.6922]
[1762644278292,0.04172844,158.17,158.16,13.52496937]
[1762644281599,0.04172844,158.17,158.16,5.6922]
[1762644283203,0.04172844,158.17,158.16,13.52496937]
[1762644283498,5.92450768,158.24,158.15,11.7234505]
[1762644283701,3.11,158.24,158.17,7.81010095]
[1762644284399,0.04091641,158.22,158.19,0.04509662]
[1762644284997,0.04091641,158.22,158.2,5.6904]
[1762644294306,3.22091641,158.22,158.2,5.6904]
[1762644295916,0.04091641,158.22,158.2,5.6904]
[1762644300825,3.22091641,158.22,158.2,5.6904]
[1762644305228,0.04091641,158.22,158.2,5.6904]
[1762644306625,2.98,158.27,158.24,5.6891]
[1762644307529,3.02488501,158.27,158.24,5.72900597]
[1762644308022,3.02488501,158.27,158.25,5.6889]
[1762644312828,3.02488501,158.27,158.24,0.03990597]
[1762644313034,2.98,158.25,158.24,0.03990597]
[1762644313636,2.98,158.24,158.15,7.81010095]
[1762644313836,0.04488501,158.27,158.14,7.81010095]
[1762644313837,2.98,158.2,158.14,7.81010095]
[1762644314430,2.98,158.2,158.15,7.81010095]
[1762644314632,3.02307779,158.19,158.17,5.6916]
[1762644320340,0.04307779,158.19,158.17,5.6916]
[1762644321338,3.02307779,158.19,158.17,5.6916]
[1762644322541,0.04307779,158.19,158.17,5.6916]
[1762644329747,2.98,158.18,158.17,5.6916]
[1762644330244,3.02307779,158.19,158.17,5.6916]
[1762644330846,0.04307779,158.19,158.17,5.6916]
[1762644334152,3.08307779,158.19,158.17,5.6916]
[1762644342862,3.08307779,158.19,158.18,5.6915]
[1762644346662,0.04307779,158.19,158.18,5.6915]
[1762644349063,0.04307779,158.19,158.16,5.73405195]
[1762644349963,2.98307779,158.19,158.16,5.73405195]
[1762644350360,2.98307779,158.19,158.17,5.6918]
[1762644354477,4.78366105,158.19,158.16,0.04215195]
[1762644354678,2.94,158.18,158.16,0.04215195]
[1762644355577,2.98307779,158.19,158.16,5.73435195]
[1762644358173,2.98307779,158.19,158.17,5.6918]
[1762644359269,2.98307779,158.19,158.16,0.04215195]
[1762644360977,2.98307779,158.19,158.16,5.73435195]
[1762644361876,2.98307779,158.19,158.17,5.6917]
[1762644365281,2.98307779,158.19,158.16,0.04215195]
[1762644366979,2.98307779,158.19,158.16,5.73435195]
[1762644368583,2.98307779,158.19,158.17,5.6918]
[1762644371887,2.98307779,158.19,158.16,0.04215195]
[1762644372988,2.98307779,158.19,158.16,5.73425195]
[1762644376284,8.67417779,158.19,158.16,5.73425195]
[1762644376594,3.08,158.18,158.16,0.04215195]
[1762644377679,3.08,158.17,158.16,0.04215195]
[1762644395108,2.99,158.18,158.16,0.04215195]
[1762644396015,2.99,158.18,158.16,5.73435195]
[1762644405622,3.26307779,158.19,158.17,5.6918]
[1762644407422,0.04307779,158.19,158.18,5.6915]
[1762644421039,3.26307779,158.19,158.18,5.6915]
[1762644422137,0.04307779,158.19,158.18,5.6915]
[1762644439051,2.98,158.17,158.16,0.04215195]
[1762644439350,2.98,158.17,158.1,7.81010095]
[1762644439546,2.98,158.17,158.14,5.6929]
[1762644440150,3.02498146,158.17,158.14,5.73425072]
[1762644441351,3.02498146,158.17,158.15,5.6925]
[1762644445961,3.02498146,158.17,158.14,0.04135072]
[1762644447964,3.02498146,158.17,158.14,5.73425072]
[1762644449263,3.02498146,158.17,158.14,0.04135072]
[1762644450260,2.98,158.15,158.14,0.04135072]
[1762644450463,4.78221337,158.15,158.14,0.04135072]
[1762644461870,2.98,158.15,158.14,0.04135072]
[1762644462069,3.14,158.16,158.14,0.04135072]
[1762644464973,2.93,158.15,158.14,0.04135072]
[1762644472667,0.04498146,158.17,158.14,0.04135072]
[1762644472976,2.97498146,158.17,158.14,0.04135072]
[1762644476178,8.66688146,158.17,158.14,0.04135072]
[1762644476372,2.93,158.16,158.14,0.04135072]
[1762644482286,2.93,158.16,158.14,5.73415072]
[1762644482979,0.04498146,158.17,158.14,0.04135072]
[1762644484084,0.04498146,158.17,158.16,5.6922]
[1762644513804,3.06498146,158.17,158.16,5.6922]
[1762644514113,3.06498146,158.17,158.14,5.73395072]
[1762644515713,3.06498146,158.17,158.15,5.6925]
[1762644517307,2.85848958,158.17,158.15,5.6925]
[1762644517513,3.02,158.16,158.14,0.04135072]
[1762644518615,3.02,158.16,158.14,5.73425072]
[1762644519217,3.02,158.16,158.14,0.04135072]
[1762644523220,3.02,158.16,158.14,5.73425072]
[1762644527931,2.96498146,158.17,158.16,5.6922]
[1762644529631,0.04498146,158.17,158.16,5.6922]
[1762644531535,2.96498146,158.17,158.16,5.6922]
[1762644539532,0.04498146,158.17,158.16,5.6922]
[1762644602497,3.03,158.22,158.21,5.6904]
[1762644604688,3.00422498,158.23,158.21,5.6904]
[1762644604894,0.04422498,158.23,158.21,5.6904]
[1762644609598,3.00422498,158.23,158.21,5.6904]
[1762644610902,2.96,158.22,158.21,5.6904]
[1762644613008,2.96,158.22,158.2,0.04773531]
[1762644613305,2.96,158.21,158.2,0.04773531]
[1762644613606,2.96,158.21,158.2,5.73853531]
[1762644628808,9.385198,158.21,158.2,0.04773531]
[1762644629816,2.96,158.2,158.14,62.28]
[1762644630824,2.96,158.18,158.16,5.6922]
[1762644634722,3.04000865,158.19,158.18,5.6915]
[1762644637319,0.04000865,158.19,158.18,5.6915]
[1762644644123,3.04000865,158.19,158.18,5.6915]
[1762644648628,2.96,158.24,158.22,5.6898]
[1762644648830,2.96,158.24,158.16,11.3844]
[1762644649133,2.96,158.24,158.15,11.7234505]
[1762644649134,2.96,158.24,158.19,5.6909]
[1762644649628,9.16860679,158.23,158.2,0.04239633]
[1762644649835,2.96,158.21,158.2,0.04239633]
[1762644650725,7.60020551,158.21,158.2,0.04239633]
[1762644656324,8.86020551,158.21,158.2,0.04239633]
[1762644660931,2.96,158.22,158.2,0.04239633]
[1762644662632,2.96,158.22,158.2,5.73309633]
[1762644664835,2.96,158.22,158.2,0.04239633]
[1762644668142,7.8021563,158.21,158.2,0.04239633]
[1762644673745,4.6421563,158.21,158.2,0.04239633]
[1762644673946,3.20414511,158.23,158.2,0.04239633]
[1762644674350,3.20414511,158.23,158.2,5.73309633]
[1762644674542,0.04414511,158.23,158.2,0.04239633]
[1762644675144,0.04414511,158.23,158.21,5.6901]
[1762644675546,0.04414511,158.23,158.21,6.9501]
[1762644675747,3.16,158.28,158.25,5.6889]
[1762644676655,3.20349623,158.28,158.25,5.73505775]
[1762644677346,3.20349623,158.28,158.26,5.6885]
[1762644677546,0.04349623,158.28,158.26,5.6885]
[1762644706383,3.14,158.35,158.27,1.79793024]
[1762644706682,3.14,158.35,158.29,1.79793024]
[1762644706978,4.93793024,158.37,158.29,1.79793024]
[1762644707171,4.56646536,158.39,158.29,1.79793024]
[1762644707375,0.04409243,158.35,158.31,5.72974931]
[1762644707578,0.04582131,158.35,158.31,0.04499469]
[1762644708080,3.18582131,158.35,158.31,0.04499469]
[1762644708688,3.18582131,158.35,158.33,5.6859]
[1762644709584,3.18582131,158.35,158.31,5.73159469]
[1762644711592,3.18582131,158.35,158.31,0.04499469]
[1762644711984,3.14,158.31,158.23,1.79793024]
[1762644712391,3.14,158.29,158.22,62.3]
[1762644712584,3.14,158.27,158.22,62.3]
[1762644713087,3.188509,158.26,158.23,0.04400224]
[1762644713292,3.14,158.25,158.23,0.04400224]
[1762644714891,3.14,158.25,158.23,5.73360224]
[1762644717789,3.14,158.25,158.23,0.04400224]
[1762644718299,3.14,158.25,158.23,5.73360224]
[1762644720095,3.14,158.25,158.23,0.04400224]
[1762644720698,3.14,158.25,158.23,5.73360224]
[1762644721694,0.048509,158.26,158.24,5.6892]
[1762644722899,0.048509,158.26,158.24,7.48713024]
[1762644734709,3.078509,158.26,158.24,5.6892]
[1762644737309,3.078509,158.26,158.23,0.04400224]
[1762644738707,3.078509,158.26,158.23,5.73360224]
[1762644739310,3.078509,158.26,158.23,0.04400224]
[1762644740014,0.048509,158.26,158.23,0.04400224]
[1762644740915,0.048509,158.26,158.24,5.6892]
[1762644741116,3.03,158.3,158.24,1.79793024]
[1762644741709,3.03,158.3,158.28,5.6879]
[1762644755220,3.03,158.3,158.27,0.04214085]
[1762644755718,3.03,158.3,158.28,5.6879]
[1762644757324,3.03,158.3,158.27,0.04214085]
[1762644758026,3.03,158.3,158.27,5.73034085]
[1762644758325,3.03,158.3,158.27,0.04214085]
[1762644758526,3.03,158.3,158.27,5.73034085]